[Event "18th Delhi GM Open 2020"]
[Site "Delhi"]
[Date "2020.01.09"]
[Round "1.20"]
[White "Grover, Sahaj"]
[Black "Sarbojit Paul"]
[Result "1-0"]
[ECO "D00"]
[WhiteElo "2521"]
[BlackElo "2084"]
[Annotator "ChessBase"]
[PlyCount "77"]
[EventDate "2020.01.09"]
[EventType "swiss"]
[EventCountry "IND"]
[SourceTitle "playchess.com"]
[Source "ChessBase"]
[SourceQuality "1"]
[TimeControl "5400+30"]

1. d4 {[%emt 0:00:05]} d5 {[%emt 0:00:02]} 2. Bf4 {[%emt 0:00:21]} Nf6 {[%emt 0:01:11]} 3. e3 {[%emt 0:00:23]} c5 {[%emt 0:00:26]} 4. c3 {[%emt 0:00:12]} Nc6 {[%emt 0:00:06]} 5. Nd2 {[%emt 0:00:13]} Bf5 {[%emt 0:00:14]} 6. Ngf3 {[%emt 0:00:35]} Qb6 {[%emt 0:03:43]} 7. dxc5 {[%emt 0:00:26]} Qxb2 {[%emt 0:09:52]} 8. Nd4 {[%emt 0:00:23]} Bg6 {[%emt 0:11:30]} 9. Bb5 {[%emt 0:06:33]} e5 {[%emt 0:37:48]} 10. Bxe5 {[%emt 0:23:13]} Nd7 {[%emt 0:01:08]} 11. Bg3 {[%emt 0:07:03]} Bxc5 {[%emt 0:04:13]} 12. O-O {[%emt 0:00:12]} Bxd4 {[%emt 0:03:29]} 13. Bxc6 {[%emt 0:00:52]} bxc6 {[%emt 0:00:07]} 14. cxd4 {[%emt 0:00:19]} O-O {[%emt 0:01:46]} 15. Qc1 {[%emt 0:02:13]} Qxc1 {[%emt 0:01:58]} 16. Rfxc1 {[%emt 0:00:07]} Rfc8 {[%emt 0:00:04]} 17. Bd6 {[%emt 0:05:01]} f6 {[%emt 0:03:48]} 18. Rc3 {[%emt 0:00:12]} a5 {[%emt 0:00:16]} 19. Rac1 {[%emt 0:02:05]} Ra6 {[%emt 0:00:33]} 20. Rb3 {[%emt 0:01:14]} Rb6 {[%emt 0:06:54]} 21. Ra3 {[%emt 0:07:33]} Ra6 {[%emt 0:02:22]} 22. Rb3 {[%emt 0:00:49]} Rb6 {[%emt 0:00:05]} 23. Bc5 {[%emt 0:00:18]} Rb5 {[%emt 0:01:06]} 24. a4 {[%emt 0:00:30]} Rbb8 {[%emt 0:01:20]} 25. Bd6 {[%emt 0:00:30]} Rb6 {[%emt 0:00:23]} 26. Bc5 {[%emt 0:02:27]} Rbb8 {[%emt 0:01:46]} 27. Ba7 {[%emt 0:02:19]} Rb4 {[%emt 0:03:23]} 28. Ra3 {[%emt 0:04:57]} c5 {[%emt 0:02:31]} 29. Bxc5 {[%emt 0:00:35]} Nxc5 {[%emt 0:01:55]} 30. dxc5 {[%emt 0:00:22]} Rb2 {[%emt 0:00:08]} 31. Nb3 {[%emt 0:00:53]} Bc2 {[%emt 0:00:02]} 32. Nd4 {[%emt 0:09:11]} Rxc5 {[%emt 0:00:02]} 33. h4 {[%emt 0:00:10]} Rc4 {[%emt 0:00:32]} 34. h5 {[%emt 0:03:31]} Rxa4 {[%emt 0:01:29]} 35. Rc3 {[%emt 0:00:07]} Rxd4 {[%emt 0:00:46]} 36. exd4 {[%emt 0:00:06]} Bb3 {[%emt 0:00:12]} 37. Rc7 {[%emt 0:01:03]} Rd2 {[%emt 0:00:49]} 38. Ra7 {[%emt 0:01:14]} Bc4 {[%emt 0:00:30]} 39. Rb1 {[%emt 0:00:11]} 1-0

[Event "18th Delhi GM Open 2020"]
[Site "Delhi"]
[Date "2020.01.09"]
[Round "1.23"]
[White "Balkishan, A.."]
[Black "Stupak, Kirill"]
[Result "0-1"]
[ECO "A57"]
[WhiteElo "2079"]
[BlackElo "2506"]
[Annotator "RC"]
[PlyCount "89"]
[EventDate "2020.01.09"]
[EventType "swiss"]
[EventCountry "IND"]
[SourceTitle "playchess.com"]
[Source "ChessBase"]
[SourceQuality "1"]
[TimeControl "5400+30"]

1. d4 Nf6 2. c4 c5 3. d5 b5 4. Nf3 g6 5. g3 bxc4 6. Nc3 Bg7 7. e4 d6 8. Nd2 O-O 9. Nxc4 Ba6 10. h4 h5 11. Bg5 Nbd7 12. Qd2 Rb8 13. Rb1 Rb4 14. b3 Bxc4 15. Bxf6 Bxf6 16. Bxc4 Qa5 17. Nd1 Bd4 18. Rc1 Rfb8 19. Rc2 Nf6 20. Bd3 Qd8 21. O-O a5 22. Kg2 a4 23. bxa4 Rxa4 24. f4 Qa5 25. Qe2 Ng4 26. e5 Qa8 27. Be4 Kg7 28. Bf3 Rb1 29. exd6 exd6 30. f5 Ne5 31. Be4 Ra1 32. Ne3 Bxe3 33. f6+ Kg8 34. Qxe3 Rxf1 35. Kxf1 Ng4 36. Qe2 Ra3 37. Rb2 Re3 38. Qc2 Qd8 39. Kg2 Qxf6 40. Kh3 Qe5 41. Rb8+ Kg7 42. Qg2 Rxe4 43. Qf3 Re2 44. Rg8+ Kxg8 45. Qf4 0-1

[Event "18th Delhi GM Open 2020"]
[Site "Delhi"]
[Date "2020.01.10"]
[Round "3.9"]
[White "Fedorov, Alexei"]
[Black "Das, Sayantan"]
[Result "1/2-1/2"]
[ECO "C00"]
[WhiteElo "2562"]
[BlackElo "2424"]
[Annotator "RC"]
[PlyCount "98"]
[EventDate "2020.01.09"]
[EventType "swiss"]
[EventCountry "IND"]
[SourceTitle "playchess.com"]
[Source "ChessBase"]
[SourceQuality "1"]
[TimeControl "5400+30"]

1. e4 e6 2. Qe2 c5 3. f4 Nc6 4. Nf3 d5 5. exd5 Qxd5 6. Nc3 Qd8 7. b3 Nh6 8. Bb2 Nf5 9. O-O-O Be7 10. Ne4 O-O 11. Kb1 Bd7 12. Qf2 Qb6 13. Ne5 Nxe5 14. fxe5 Bc6 15. Bd3 Bxe4 16. Bxe4 Nd4 17. Rhe1 a5 18. a4 Rad8 19. Qf1 Rd7 20. Qd3 g6 21. c3 c4 22. Qxc4 Nxb3 23. d4 Rc7 24. Qb5 Qxb5 25. axb5 a4 26. b6 Rc4 27. Ka2 Na5 28. Rd3 Rcc8 29. Rb1 Nc4 30. Bxb7 Rb8 31. Ba6 Nxb6 32. c4 Ra8 33. Bb5 Rfc8 34. c5 Nd5 35. Bc1 Rcb8 36. Bd2 f6 37. exf6 Bxf6 38. g4 Kf7 39. g5 Bg7 40. Rf1+ Ke7 41. Bc6 Ra6 42. Bxd5 exd5 43. Bf4 Rb3 44. Bd6+ Ke6 45. Re1+ Kf5 46. Rd2 Kxg5 47. Re7 Bf6 48. Rxh7 Rf3 49. Rb7 a3 1/2-1/2

[Event "18th Delhi GM Open 2020"]
[Site "Delhi"]
[Date "2020.01.10"]
[Round "3.20"]
[White "Vatsal Singhania"]
[Black "Tukhaev, Adam"]
[Result "1/2-1/2"]
[ECO "B06"]
[WhiteElo "2230"]
[BlackElo "2548"]
[Annotator "RC"]
[PlyCount "120"]
[EventDate "2020.01.09"]
[EventType "swiss"]
[EventCountry "IND"]
[SourceTitle "playchess.com"]
[Source "ChessBase"]
[SourceQuality "1"]
[TimeControl "5400+30"]

1. e4 {[%emt 0:00:00]} d6 {[%emt 0:00:16]} 2. d4 {[%emt 0:00:00]} g6 {[%emt 0:00:23]} 3. Nc3 {[%emt 0:00:00]} Bg7 {[%emt 0:00:24]} 4. Be3 {[%emt 0:00:00]} a6 {[%emt 0:02:59]} 5. Qd2 {[%emt 0:00:16]} b5 {[%emt 0:00:37]} 6. h4 {[%emt 0:00:51]} h6 {[%emt 0:02:23]} 7. O-O-O {[%emt 0:01:36]} Bb7 {[%emt 0:01:29]} 8. f3 {[%emt 0:00:10]} Nd7 {[%emt 0:00:47]} 9. Nge2 {[%emt 0:05:04]} Rc8 {[%emt 0:14:04]} 10. g4 {[%emt 0:08:04]} c5 {[%emt 0:01:29]} 11. dxc5 {[%emt 0:01:11]} Nxc5 {[%emt 0:00:18]} 12. Nd4 {[%emt 0:00:09]} Nf6 {[%emt 0:12:36]} 13. h5 {[%emt 0:03:06]} b4 {[%emt 0:05:51]} 14. Nce2 {[%emt 0:01:20]} e5 {[%emt 0:20:23]} 15. hxg6 {[%emt 0:06:15]} fxg6 {[%emt 0:05:27]} 16. Bxh6 {[%emt 0:04:52]} exd4 {[%emt 0:02:26]} 17. Nxd4 {[%emt 0:00:12]} Qe7 {[%emt 0:03:38]} 18. Bg2 {[%emt 0:06:19]} Rxh6 {[%emt 0:09:11]} 19. Rxh6 {[%emt 0:00:16]} Qf7 {[%emt 0:00:02]} 20. Kb1 {[%emt 0:00:54]} Bxh6 {[%emt 0:00:17]} 21. Qxh6 {[%emt 0:00:06]} Ncd7 {[%emt 0:02:57]} 22. Bh3 {[%emt 0:10:17]} Qh7 {[%emt 0:01:14]} 23. g5 {[%emt 0:00:56]} Rc5 {[%emt 0:08:09]} 24. Ne6 {[%emt 0:09:24]} Rc6 {[%emt 0:00:03]} 25. Rg1 {[%emt 0:09:17]} Bc8 {[%emt 0:00:42]} 26. f4 {[%emt 0:06:17]} Rc4 {[%emt 0:02:22]} 27. f5 {[%emt 0:04:39]} Qxh6 {[%emt 0:00:04]} 28. gxh6 {[%emt 0:00:03]} g5 {[%emt 0:00:06]} 29. Nxg5 {[%emt 0:01:36]} Nf8 {[%emt 0:00:03]} 30. Bf1 {[%emt 0:00:42]} Rc7 {[%emt 0:00:03]} 31. Bd3 {[%emt 0:01:20]} Re7 {[%emt 0:01:12]} 32. Kc1 {[%emt 0:01:51]} Bb7 33. Rd1 {[%emt 0:06:56]} N6h7 {[%emt 0:01:37]} 34. Nh3 {[%emt 0:02:42]} Kd7 {[%emt 0:00:03]} 35. Re1 {[%emt 0:02:56]} Nf6 {[%emt 0:00:34]} 36. Ng5 {[%emt 0:00:04]} a5 {[%emt 0:01:12]} 37. Kd2 {[%emt 0:00:39]} Bc6 {[%emt 0:00:03]} 38. Rh1 {[%emt 0:03:28]} N8h7 {[%emt 0:00:31]} 39. Nxh7 {[%emt 0:02:22]} Rxh7 {[%emt 0:00:06]} 40. Ke3 {[%emt 0:00:38]} Rxh6 {[%emt 0:00:45]} 41. Rxh6 {[%emt 0:00:04]} Ng4+ {[%emt 0:00:02]} 42. Kf4 {[%emt 0:00:04]} Nxh6 {[%emt 0:00:04]} 43. e5 {[%emt 0:00:03]} dxe5+ {[%emt 0:00:12]} 44. Kxe5 {[%emt 0:00:03]} Ng4+ {[%emt 0:00:08]} 45. Kd4 {[%emt 0:00:04]} Kd6 {[%emt 0:00:40]} 46. c3 {[%emt 0:00:30]} bxc3 {[%emt 0:01:02]} 47. Kxc3 {[%emt 0:00:03]} Ne3 {[%emt 0:00:23]} 48. Kd4 {[%emt 0:01:12]} Nd1 {[%emt 0:01:11]} 49. b3 {[%emt 0:00:05]} Nf2 {[%emt 0:00:11]} 50. Be2 {[%emt 0:03:28]} Ne4 {[%emt 0:02:24]} 51. Bf3 {[%emt 0:00:04]} Nf6 {[%emt 0:00:15]} 52. Bxc6 {[%emt 0:00:04]} Kxc6 {[%emt 0:00:03]} 53. Kc4 {[%emt 0:00:13]} Ne4 {[%emt 0:00:13]} 54. f6 {[%emt 0:00:43]} Nxf6 {[%emt 0:00:07]} 55. b4 {[%emt 0:00:03]} a4 {[%emt 0:00:15]} 56. b5+ {[%emt 0:00:04]} Kb6 {[%emt 0:00:03]} 57. Kb4 {[%emt 0:00:03]} Nd5+ {[%emt 0:00:03]} 58. Kxa4 {[%emt 0:00:03]} Nc3+ {[%emt 0:00:04]} 59. Kb3 {[%emt 0:00:03]} Nxa2 {[%emt 0:00:04]} 60. Kxa2 {[%emt 0:00:06]} Kxb5 {[%emt 0:00:34]} 1/2-1/2

[Event "18th Delhi GM Open 2020"]
[Site "Delhi"]
[Date "2020.01.10"]
[Round "3.22"]
[White "Vasquez Schroeder, Rodrigo"]
[Black "Mohite, Ranveer"]
[Result "1/2-1/2"]
[ECO "D79"]
[WhiteElo "2487"]
[BlackElo "2281"]
[Annotator "RC"]
[PlyCount "96"]
[EventDate "2020.01.09"]
[EventType "swiss"]
[EventCountry "IND"]
[SourceTitle "playchess.com"]
[Source "ChessBase"]
[SourceQuality "1"]
[TimeControl "5400+30"]

1. d4 {[%emt 0:00:00]} Nf6 {[%emt 0:01:57]} 2. Nf3 {[%emt 0:00:00]} g6 {[%emt 0:00:41]} 3. c4 {[%emt 0:00:00]} Bg7 {[%emt 0:00:07]} 4. g3 {[%emt 0:00:00]} O-O {[%emt 0:00:19]} 5. Bg2 {[%emt 0:00:00]} c6 {[%emt 0:00:10]} 6. O-O {[%emt 0:01:29]} d5 {[%emt 0:00:47]} 7. cxd5 {[%emt 0:01:20]} cxd5 {[%emt 0:00:10]} 8. Ne5 {[%emt 0:00:23]} Ne4 {[%emt 0:03:48]} 9. Nd2 {[%emt 0:03:25]} Nxd2 {[%emt 0:06:21]} 10. Bxd2 {[%emt 0:00:18]} Nd7 {[%emt 0:01:01]} 11. Bc3 {[%emt 0:01:21]} Nf6 {[%emt 0:11:41]} 12. f3 {[%emt 0:03:12]} Qb6 {[%emt 0:03:37]} 13. e3 {[%emt 0:01:45]} Qe6 {[%emt 0:09:01]} 14. Re1 {[%emt 0:04:34]} b6 {[%emt 0:02:02]} 15. a4 {[%emt 0:07:27]} Nd7 {[%emt 0:08:08]} 16. Nd3 a5 {[%emt 0:03:51]} 17. Nf4 {[%emt 0:02:45]} Qd6 {[%emt 0:03:06]} 18. Nxd5 {[%emt 0:01:42]} Bb7 {[%emt 0:00:35]} 19. Nf4 {[%emt 0:00:11]} Rfd8 {[%emt 0:05:19]} 20. Nd3 {[%emt 0:10:54]} Rac8 {[%emt 0:01:35]} 21. f4 {[%emt 0:02:36]} Bxg2 {[%emt 0:08:08]} 22. Kxg2 {[%emt 0:00:07]} Qc6+ {[%emt 0:00:58]} 23. Qf3 {[%emt 0:00:47]} Qc4 {[%emt 0:04:29]} 24. Ne5 {[%emt 0:11:39]} Nxe5 {[%emt 0:00:29]} 25. fxe5 {[%emt 0:00:07]} e6 {[%emt 0:00:42]} 26. Qe2 {[%emt 0:06:32]} Qc6+ {[%emt 0:01:00]} 27. Kg1 {[%emt 0:01:13]} Bf8 {[%emt 0:00:56]} 28. Qg2 {[%emt 0:04:28]} Qc4 {[%emt 0:02:33]} 29. Qe4 {[%emt 0:04:45]} Rd7 {[%emt 0:03:25]} 30. Rec1 {[%emt 0:02:59]} Rdc7 {[%emt 0:04:41]} 31. Qc2 {[%emt 0:01:34]} Qd5 {[%emt 0:04:48]} 32. Qe2 {[%emt 0:11:20]} Bb4 {[%emt 0:01:43]} 33. Qd3 {[%emt 0:02:59]} Qb3 {[%emt 0:01:21]} 34. Qb5 {[%emt 0:01:13]} Qc4 {[%emt 0:02:59]} 35. Rc2 {[%emt 0:09:50]} Bxc3 {[%emt 0:02:38]} 36. Rac1 {[%emt 0:01:42]} Qb4 {[%emt 0:01:28]} 37. bxc3 {[%emt 0:00:43]} Rxc3 {[%emt 0:00:59]} 38. Rxc3 {[%emt 0:00:35]} Rxc3 {[%emt 0:00:08]} 39. Qe8+ {[%emt 0:00:42]} Kg7 {[%emt 0:00:09]} 40. Rf1 Rc7 {[%emt 0:00:52]} 41. Qd8 {[%emt 0:00:28]} Qe7 {[%emt 0:00:53]} 42. Qxe7 {[%emt 0:00:15]} Rxe7 {[%emt 0:00:02]} 43. Rb1 {[%emt 0:00:07]} Rb7 {[%emt 0:00:11]} 44. Rb5 {[%emt 0:00:16]} Rc7 {[%emt 0:01:23]} 45. Rxb6 {[%emt 0:00:38]} Rc4 {[%emt 0:00:02]} 46. h3 {[%emt 0:00:16]} Rxa4 47. h4 {[%emt 0:00:05]} h5 {[%emt 0:01:09]} 48. Kf2 {[%emt 0:00:26]} Ra2+ {[%emt 0:00:15] Ra6 Ra1 Ra7 Kf8 e4 Ra2+ Ke3 Ra3+ Ke2 Rxg3 d5 exd5 exd5 Rg4 Ke3 Rb4 Rxa5 Rb7 Ra4 Ke7 Kf4 f6 exf6+ Kxf6 Ra6+ Kf7 Kg5 Rb5 Ra7+ Ke8 Kf6 Rxd5 Ke6 Rd4 Ra8+ Rd8 Ra7} 1/2-1/2

[Event "18th Delhi GM Open 2020"]
[Site "Delhi"]
[Date "2020.01.10"]
[Round "3.27"]
[White "Shyaamnikhil P"]
[Black "Ziatdinov, Raset"]
[Result "1-0"]
[ECO "A06"]
[WhiteElo "2458"]
[BlackElo "2203"]
[Annotator "RC"]
[PlyCount "74"]
[EventDate "2020.01.09"]
[EventType "swiss"]
[EventCountry "IND"]
[SourceTitle "playchess.com"]
[Source "ChessBase"]
[SourceQuality "1"]
[TimeControl "5400+30"]

1. Nf3 {[%emt 0:00:00]} d5 {[%emt 0:00:00]} 2. g3 {[%emt 0:00:00]} Nc6 {[%emt 0:00:00]} 3. d4 {[%emt 0:00:16]} b5 {[%emt 0:00:09]} 4. Bg2 {[%emt 0:00:40]} e6 {[%emt 0:00:16]} 5. O-O {[%emt 0:00:51]} Nf6 {[%emt 0:00:09]} 6. Nbd2 {[%emt 0:03:09]} Bb7 {[%emt 0:02:21]} 7. c3 {[%emt 0:02:41]} Bd6 {[%emt 0:03:44]} 8. e4 {[%emt 0:05:28]} dxe4 {[%emt 0:04:53]} 9. Ng5 {[%emt 0:00:17]} Ne7 {[%emt 0:00:49]} 10. Ndxe4 {[%emt 0:01:29]} Nxe4 {[%emt 0:00:22]} 11. Nxe4 {[%emt 0:00:06]} Rb8 {[%emt 0:01:09]} 12. Qh5 {[%emt 0:03:53]} O-O {[%emt 0:06:15]} 13. Bg5 {[%emt 0:04:59]} Bxe4 {[%emt 0:02:51]} 14. Bxe4 {[%emt 0:00:36]} h6 {[%emt 0:00:12]} 15. Rfe1 {[%emt 0:02:25]} Qd7 {[%emt 0:00:57]} 16. Bc2 {[%emt 0:06:10]} Nd5 {[%emt 0:01:54]} 17. Bxh6 {[%emt 0:10:24]} gxh6 {[%emt 0:00:42]} 18. Qxh6 {[%emt 0:00:05]} f6 {[%emt 0:03:24]} 19. Re4 {[%emt 0:00:55]} Nf4 {[%emt 0:13:50]} 20. gxf4 {[%emt 0:01:37]} Qg7+ {[%emt 0:00:10]} 21. Qxg7+ {[%emt 0:00:07]} Kxg7 {[%emt 0:00:06]} 22. Rae1 {[%emt 0:03:49]} Rh8 {[%emt 0:00:44]} 23. Rxe6 {[%emt 0:02:23]} Rh4 {[%emt 0:00:31]} 24. Re7+ {[%emt 0:20:29]} Bxe7 {[%emt 0:01:32]} 25. Rxe7+ {[%emt 0:00:06]} Kh8 {[%emt 0:00:44]} 26. Rxc7 {[%emt 0:01:45]} Rg8+ {[%emt 0:00:54]} 27. Kf1 {[%emt 0:00:07]} Rxh2 {[%emt 0:01:05]} 28. Rxa7 {[%emt 0:01:27]} Rg4 {[%emt 0:00:38]} 29. Re7 {[%emt 0:05:09]} Rxf4 {[%emt 0:00:18]} 30. Re2 {[%emt 0:00:07]} b4 {[%emt 0:03:37]} 31. d5 {[%emt 0:03:31]} bxc3 {[%emt 0:00:30]} 32. bxc3 {[%emt 0:00:06]} Rg4 {[%emt 0:11:22]} 33. Rd2 {[%emt 0:01:10]} Rh5 {[%emt 0:02:09]} 34. Ke2 {[%emt 0:03:12]} Re5+ {[%emt 0:01:12] Bb3 Rg8+} 35. Kf3 {[%emt 0:09:42] Rge8 c4 Rc8 Rc2 Rc5 Kg4 Rg5+ Kf3 Re5} Re2 {[%emt 0:06:23] Kg7 Re4 Rc8 Ke3 Kf7 Kd4 Rxe4+ Kxe4 Ke7 Kd4 Rh8 c5 Rh4+ Ke3 Rb4 Kd3 Rf4 Ke3 Rb4} 36. d6 {[%emt 0:05:34] Kd7 Bd5} Ra4 {[%emt 0:31:25] Kd3 Rg4 Kc3 Rb4 Kxb4} 37. Bb3 {[%emt 0:03:04]} Rxf2+ {[%emt 0:20:32] Ba4+ Kc8 Bb3 Kd7 Kb6 Rb2 c6+} 1-0

[Event "18th Delhi GM Open 2020"]
[Site "Delhi"]
[Date "2020.01.11"]
[Round "4.5"]
[White "Rahman, Ziaur"]
[Black "Hesham, Abdelrahman"]
[Result "1-0"]
[ECO "A45"]
[WhiteElo "2434"]
[BlackElo "2429"]
[Annotator "RC"]
[PlyCount "104"]
[EventDate "2020.01.09"]
[EventType "swiss"]
[EventCountry "IND"]
[SourceTitle "playchess.com"]
[Source "ChessBase"]
[SourceQuality "1"]
[TimeControl "5400+30"]

1. d4 {[%emt 0:00:16]} Nf6 {[%emt 0:00:19]} 2. Bg5 {[%emt 0:01:09]} Ne4 {[%emt 0:01:12]} 3. Bf4 {[%emt 0:00:12]} e6 {[%emt 0:00:07]} 4. Nd2 {[%emt 0:06:57]} d5 {[%emt 0:05:47]} 5. Nxe4 {[%emt 0:01:30]} dxe4 {[%emt 0:00:05]} 6. e3 {[%emt 0:00:18]} Bd6 {[%emt 0:04:10]} 7. Nh3 {[%emt 0:02:59]} Qe7 {[%emt 0:02:30]} 8. c3 {[%emt 0:03:32]} Nd7 {[%emt 0:06:19]} 9. Qc2 {[%emt 0:06:49]} f5 {[%emt 0:04:25]} 10. O-O-O {[%emt 0:04:23]} e5 {[%emt 0:11:29]} 11. dxe5 {[%emt 0:07:18]} Nxe5 {[%emt 0:00:24]} 12. Bxe5 {[%emt 0:01:45]} Bxe5 {[%emt 0:07:43]} 13. Qb3 {[%emt 0:01:02]} a5 {[%emt 0:03:12]} 14. a4 {[%emt 0:03:42]} c6 {[%emt 0:01:53]} 15. Bc4 {[%emt 0:05:10]} b5 {[%emt 0:26:02]} 16. axb5 {[%emt 0:02:33]} a4 {[%emt 0:01:43]} 17. Qa3 {[%emt 0:01:10]} Qxa3 {[%emt 0:00:07]} 18. bxa3 {[%emt 0:00:04]} Bd7 {[%emt 0:00:39]} 19. bxc6 {[%emt 0:01:31]} Bxc6 {[%emt 0:01:10]} 20. Ng5 {[%emt 0:02:15]} Bxc3 {[%emt 0:08:53]} 21. Rd6 {[%emt 0:04:11]} Rc8 {[%emt 0:00:04]} 22. Ba6 {[%emt 0:09:29]} Rc7 {[%emt 0:00:33]} 23. Rhd1 {[%emt 0:01:57]} Bd7 {[%emt 0:11:24]} 24. Rxd7 {[%emt 0:00:51]} Bd2+ {[%emt 0:00:04]} 25. Kb2 {[%emt 0:05:34]} Kxd7 {[%emt 0:00:07]} 26. Rxd2+ {[%emt 0:00:14]} Ke7 {[%emt 0:00:03]} 27. Rd4 {[%emt 0:02:25]} Ra8 {[%emt 0:00:04]} 28. Bc4 {[%emt 0:04:27]} Rb8+ {[%emt 0:01:17]} 29. Kc2 {[%emt 0:00:07]} Rcb7 {[%emt 0:00:19]} 30. g4 {[%emt 0:02:20]} Kf6 {[%emt 0:01:26]} 31. h4 {[%emt 0:00:11]} h6 {[%emt 0:00:32]} 32. Nh3 {[%emt 0:03:56]} fxg4 {[%emt 0:00:28]} 33. Nf4 {[%emt 0:00:07]} Rb2+ {[%emt 0:00:18]} 34. Kc3 {[%emt 0:00:04]} Rxf2 {[%emt 0:00:13]} 35. Rxe4 {[%emt 0:01:04]} Rc8 {[%emt 0:01:46]} 36. Kd3 {[%emt 0:04:41]} Rd8+ {[%emt 0:00:36]} 37. Nd5+ {[%emt 0:03:05]} Kf5 {[%emt 0:00:15]} 38. Re7 {[%emt 0:00:31]} Kg6 {[%emt 0:00:09]} 39. Kd4 {[%emt 0:03:14]} Rd2+ {[%emt 0:00:58]} 40. Ke5 {[%emt 0:00:02]} g3 {[%emt 0:00:36]} 41. Nf4+ {[%emt 0:00:16]} Kh7 {[%emt 0:00:01]} 42. Nh5 {[%emt 0:01:01]} g2 {[%emt 0:00:47]} 43. Rxg7+ {[%emt 0:00:52]} Kh8 44. Rg6 {[%emt 0:00:37]} Kh7 {[%emt 0:00:27]} 45. Bf7 {[%emt 0:04:08]} Rf2 {[%emt 0:01:15]} 46. Nf4 {[%emt 0:01:25]} Rd7 {[%emt 0:00:08]} 47. Bg8+ {[%emt 0:00:13]} Kh8 {[%emt 0:00:01]} 48. Bd5 {[%emt 0:00:52]} Re7+ {[%emt 0:00:29]} 49. Kd4 {[%emt 0:00:44]} Rd2+ {[%emt 0:00:15]} 50. Kc5 {[%emt 0:00:32]} Rxe3 {[%emt 0:00:58]} 51. Rxh6+ {[%emt 0:00:08]} Kg7 {[%emt 0:00:01]} 52. Rg6+ {[%emt 0:00:06]} Kh7 {[%emt 0:00:05]} 1-0

[Event "18th Delhi GM Open 2020"]
[Site "Delhi"]
[Date "2020.01.12"]
[Round "5.13"]
[White "Bogdanovich, Stanislav"]
[Black "Pranesh M"]
[Result "0-1"]
[ECO "A45"]
[WhiteElo "2562"]
[BlackElo "2317"]
[Annotator "RC"]
[PlyCount "64"]
[EventDate "2020.01.09"]
[EventType "swiss"]
[EventCountry "IND"]
[SourceTitle "playchess.com"]
[Source "ChessBase"]
[SourceQuality "1"]
[TimeControl "5400+30"]

1. d4 {[%emt 0:00:00]} Nf6 {[%emt 0:00:00]} 2. Bg5 {[%emt 0:00:00]} d5 {[%emt 0:00:00]} 3. e3 {[%emt 0:00:55]} e6 {[%emt 0:00:04]} 4. Nd2 {[%emt 0:02:15]} c5 {[%emt 0:00:12]} 5. c3 {[%emt 0:00:21]} Nc6 {[%emt 0:01:30]} 6. Bd3 {[%emt 0:04:51]} Qb6 {[%emt 0:01:42]} 7. Rb1 {[%emt 0:06:25]} e5 {[%emt 0:04:14]} 8. Bxf6 {[%emt 0:06:32]} gxf6 {[%emt 0:00:34]} 9. e4 {[%emt 0:02:02]} Be6 {[%emt 0:10:18]} 10. exd5 {[%emt 0:03:11]} Bxd5 {[%emt 0:00:23]} 11. Be4 {[%emt 0:02:39]} Bxa2 {[%emt 0:11:57]} 12. Ra1 {[%emt 0:04:10]} Qxb2 {[%emt 0:01:01]} 13. d5 {[%emt 0:02:03]} O-O-O {[%emt 0:01:41]} 14. Rxa2 {[%emt 0:09:11]} Qxa2 {[%emt 0:00:29]} 15. dxc6 {[%emt 0:00:04]} Bh6 {[%emt 0:03:07]} 16. cxb7+ {[%emt 0:02:59]} Kb8 {[%emt 0:03:47]} 17. Ngf3 {[%emt 0:00:16]} f5 {[%emt 0:05:10]} 18. Bxf5 {[%emt 0:03:48]} e4 {[%emt 0:02:03]} 19. Bxe4 {[%emt 0:06:41]} Rhe8 {[%emt 0:02:40]} 20. O-O {[%emt 0:00:06]} Rxe4 {[%emt 0:03:35]} 21. Nxe4 {[%emt 0:00:04]} Rxd1 {[%emt 0:00:05]} 22. Rxd1 {[%emt 0:00:10]} Bf8 {[%emt 0:03:54]} 23. h4 {[%emt 0:04:05]} Kxb7 {[%emt 0:03:58]} 24. Kh2 {[%emt 0:09:26]} Qa4 {[%emt 0:06:53]} 25. Re1 {[%emt 0:00:49]} f5 {[%emt 0:01:49]} 26. Neg5 {[%emt 0:07:42]} h6 {[%emt 0:01:41]} 27. Nf7 {[%emt 0:00:53]} Qd7 {[%emt 0:01:43]} 28. N3e5 {[%emt 0:00:50]} Bd6 {[%emt 0:02:36]} 29. Rb1+ {[%emt 0:01:54]} Kc8 {[%emt 0:02:22]} 30. f4 {[%emt 0:01:52]} Bxe5 {[%emt 0:00:21]} 31. Nxe5 {[%emt 0:00:04]} Qd2 {[%emt 0:00:20]} 32. Ng6 {[%emt 0:00:03]} a5 {[%emt 0:03:22]} 0-1

[Event "18th Delhi GM Open 2020"]
[Site "Delhi"]
[Date "2020.01.12"]
[Round "5.21"]
[White "Grover, Sahaj"]
[Black "Saurabh Anand"]
[Result "1/2-1/2"]
[ECO "C91"]
[WhiteElo "2521"]
[BlackElo "2269"]
[Annotator "RC"]
[PlyCount "69"]
[EventDate "2020.01.09"]
[EventType "swiss"]
[EventCountry "IND"]
[SourceTitle "playchess.com"]
[Source "ChessBase"]
[SourceQuality "1"]
[TimeControl "5400+30"]

1. e4 {[%emt 0:00:00]} e5 {[%emt 0:00:00]} 2. Nf3 {[%emt 0:00:00]} Nc6 {[%emt 0:00:00]} 3. Bb5 {[%emt 0:00:00]} a6 {[%emt 0:00:40]} 4. Ba4 {[%emt 0:00:01]} Nf6 {[%emt 0:00:07]} 5. O-O {[%emt 0:00:06]} Be7 {[%emt 0:00:07]} 6. Re1 {[%emt 0:00:04]} b5 {[%emt 0:01:14]} 7. Bb3 {[%emt 0:00:07]} d6 {[%emt 0:00:08]} 8. c3 {[%emt 0:00:04]} O-O {[%emt 0:00:09]} 9. d4 {[%emt 0:00:03]} Bg4 {[%emt 0:01:31]} 10. Be3 {[%emt 0:00:13]} exd4 {[%emt 0:04:18]} 11. cxd4 {[%emt 0:00:09]} d5 {[%emt 0:00:36]} 12. e5 {[%emt 0:00:50]} Ne4 {[%emt 0:00:11]} 13. h3 {[%emt 0:00:07]} Bh5 {[%emt 0:01:57]} 14. Nbd2 {[%emt 0:00:04]} Bb4 {[%emt 0:07:08]} 15. Qc2 {[%emt 0:15:25]} Nxd2 {[%emt 0:09:04]} 16. Nxd2 {[%emt 0:01:15]} Na5 {[%emt 0:00:12]} 17. f4 {[%emt 0:01:27]} f5 {[%emt 0:06:32]} 18. Rec1 {[%emt 0:03:34]} c6 {[%emt 0:04:55]} 19. Kh2 {[%emt 0:10:02]} Qd7 {[%emt 0:02:50]} 20. Rg1 {[%emt 0:01:39]} Rfc8 {[%emt 0:07:18]} 21. Nf1 {[%emt 0:03:53]} c5 {[%emt 0:04:38]} 22. dxc5 {[%emt 0:01:02]} Nxb3 {[%emt 0:03:08]} 23. Qxb3 {[%emt 0:01:12]} Bxc5 {[%emt 0:00:08]} 24. Rc1 {[%emt 0:02:22]} Be7 {[%emt 0:02:22]} 25. Nd2 {[%emt 0:00:53]} Bf7 {[%emt 0:05:10]} 26. Qd3 {[%emt 0:00:12]} d4 {[%emt 0:03:58]} 27. b3 {[%emt 0:03:29]} Ba3 {[%emt 0:08:56]} 28. Rxc8+ {[%emt 0:14:48]} Rxc8 {[%emt 0:00:17]} 29. Nb1 {[%emt 0:00:08]} Bb2 {[%emt 0:03:40]} 30. Bf2 {[%emt 0:06:00]} Bd5 {[%emt 0:03:45]} 31. Nd2 {[%emt 0:05:19]} Rc3 {[%emt 0:00:34]} 32. Qb1 {[%emt 0:00:36]} d3 {[%emt 0:01:38]} 33. Qxb2 {[%emt 0:07:11]} Rc2 {[%emt 0:00:10]} 34. Qd4 {[%emt 0:00:12]} Rxd2 {[%emt 0:00:28]} 35. Be3 {[%emt 0:00:07]} 1/2-1/2